Cogmind - Beta 16.1 @@@ ROGUE MODE // 2026.03.26 @ 22:11:07 Player: KURIIRI Result: Destroyed by Autobeam Turret with Autobeam Performance ------------- Evolutions (0) 0 Regions Visited (2) 400 Robots Destroyed (36) 180 Value Destroyed (897) 897 Prototype IDs (0) 0 Alien Tech Used (0) 0 Bonus (-79) -79 TOTAL SCORE: 1398 Bonus ------- Friendly Fire -79 Cogmind --------- Core Integrity 0/250 Matter 300/300 Energy 170/170 System Corruption 0% Temperature Cool (6) Movement Rolling (120) Ox1 Location -10/Subcaves Parts ------- > --- POWER (1) -------- Makeshift Power Source > --- PROPULSION (2) --- Subdweller Monowheel > --- UTILITY (2) ------ Small Storage Unit Improved Targeting Computer > --- WEAPON (2) ------- Subdweller Beam Cannon Subdweller Beam Cannon > --- INVENTORY (8) ---- Subdweller Power Source Improved Terrain Scanner Subdweller Laser Subdweller Beam Cannon Subdweller Beam Cannon Heavy Assault Rifle Grenade Launcher Maul Peak State ------------ > --- POWER ------------ Makeshift Power Source > --- PROPULSION ------- Subdweller Monowheel > --- UTILITY ---------- Small Storage Unit Improved Targeting Computer > --- WEAPON ----------- Subdweller Beam Cannon Subdweller Beam Cannon > --- INVENTORY -------- Subdweller Power Source Improved Terrain Scanner Subdweller Laser Subdweller Beam Cannon Subdweller Beam Cannon Heavy Assault Rifle Grenade Launcher Maul [Rating: 14] Favorites ----------- Power Light Ion Engine Engine Light Ion Engine Propulsion Light Treads Treads Light Treads Leg Aluminum Leg Wheel Subdweller Monowheel Utility Small Storage Unit Device Improved Terrain Scanner Storage Small Storage Unit Processor Improved Targeting Computer Weapon Subdweller Beam Cannon Energy Gun Subdweller Laser Energy Cannon Subdweller Beam Cannon Ballistic Gun Subdweller Machine Gun Ballistic Cannon Improved Light Cannon Launcher Grenade Launcher Build | -11 -10 -10 ------- Run | Yrd Mat Sub Slots Evolved . | . . . Power . | . . . Propulsion . | . . . Utility . | . . . Weapon . | . . . Parts Attached 29 | 3 10 16 Power 5 | . 1 4 Engine 5 | . 1 4 Core . | . . . Reactor . | . . . Propulsion 4 | 2 . 2 Treads 2 | 2 . . Leg . | . . . Wheel 2 | . . 2 Hover . | . . . Flight . | . . . Utility 3 | 1 2 . Device 1 | 1 . . Storage . | . . . Processor 2 | . 2 . Hackware . | . . . Protection . | . . . Artifact . | . . . Weapon 17 | . 7 10 Energy Gun 3 | . 1 2 Energy Cannon 6 | . 2 4 Ballistic Gun 4 | . 2 2 Ballistic Cannon 3 | . 2 1 Launcher 1 | . . 1 Special Weapon . | . . . Impact Weapon . | . . . Slashing Weapon . | . . . Piercing Weapon . | . . . Special Melee Weapon . | . . . Unidentified Prototypes . | . . . Parts Lost 4 | . . 4 Power . | . . . Propulsion 3 | . . 3 Utility . | . . . Weapon 1 | . . 1 Highest Loss Streak 1 | . . 1 To Critical Strikes . | . . . Average Backups 7 | 5 7 7 Power . | 1 . . Propulsion 1 | 3 1 . Utility 1 | . 2 1 Weapon 4 | 1 2 5 Tool/Special . | . . . Unused Backups 9 | . 3 6 Power . | . . . Propulsion 1 | . 1 . Utility 2 | . . 2 Weapon 6 | . 2 4 Tool/Special . | . . . Average Slot Usage (%) 95 | . 99 93 Engine 13 | . 13 12 Treads 21 | . 28 18 Wheel 3 | . . 5 Storage 14 | . 14 14 Processor 13 | . 13 14 Energy Gun 5 | . 7 4 Energy Cannon 13 | . 7 17 Ballistic Gun 5 | . 6 5 Ballistic Cannon 2 | . 7 . Peak Build Rating 14 | 9 11 14 Average Rating 11 | 7 10 11 On Entrance 8 | 6 9 11 Avg Prop Armor Cover (%) 15 | . . 15 Naked Turns . | . . . Heaviest Build 26 | 13 16 26 Greatest Support 40 | 40 40 40 Greatest Overweight (x) 8 | . . 8 Average Overweight (x) . | . . . Largest Inventory Capacity 8 | 8 8 8 Average Capacity 8 | 8 8 8 Most Carried 8 | 6 8 8 Average Carried 7 | 5 7 7 Final Capacity 8 | 8 8 8 Final Carried 8 | 4 8 8 Class Distribution -------------------- 100% | Mutant Dominant Class ---------------- Mutant | -10/Materials Mutant | -10/Subcaves Resources | -11 -10 -10 ----------- Run | Yrd Mat Sub Matter Collected 1063 | 179 653 231 Remotely . | . . . Salvage Created 1244 | 103 472 669 Parts 77 | 4 36 37 Haulers Intercepted 2 | . 2 . Recyclers Shooed . | . . . Parts Field Recycled . | . . . Retrieved Matter . | . . . Parts Self-Destructed 17 | . . 17 Prevented . | . . . Parts Restored . | . . . Kills | -11 -10 -10 ------- Run | Yrd Mat Sub Combat Hostiles Destroyed 27 | . 11 16 Guns 5 | . 3 2 Cannons 16 | . 7 9 AOE 5 | . 1 4 Classes Destroyed 11 | 2 8 1 Worker 2 | . 2 . Builder 1 | . 1 . Tunneler 1 | 1 . . Hauler 2 | . 2 . Recycler 1 | 1 . . Operator 1 | . 1 . Watcher 1 | . 1 . Swarmer 8 | . 4 4 Grunt 7 | . 6 1 Artisan 3 | . . 3 Subdweller 12 | . 1 11 Best Kill Streak 4 | 2 3 4 Combat Bots Only 4 | . 2 4 Max Kills in Single Turn 2 | 1 2 2 Gunslinging . | . . . Exploded 2 | . 1 2 Melee . | . . . Uniques/NPCs Destroyed . | . . . Combat | -11 -10 -10 -------- Run | Yrd Mat Sub Hostile Shots Fired 123 | . 44 79 Missed 47 | . 12 35 Hits 76 | . 32 44 Projectile 76 | . 32 44 Damage Taken 998 | . 320 678 Core 253 | . 58 195 Absorbed by Shields . | . . . Core Remaining (%) 100 | 100 . . Volleys Fired 121 | 6 47 68 Largest 2 | 2 2 2 Hottest 160 | 90 101 160 Shots Fired 214 | 12 92 110 Gun 96 | 12 40 44 Cannon 114 | . 52 62 Launcher 4 | . . 4 Special . | . . . Kinetic 48 | . 25 23 Thermal 136 | 6 47 83 Explosive 4 | . . 4 Electromagnetic 26 | 6 20 . Robot Hit Streak 22 | 2 6 22 Robot Miss Streak 5 | 4 4 5 Penetration Max . | . . . Secondary Targets . | . . . Shots Hit Robots 112 | 4 51 57 Core Hits 44 | 3 20 21 Critical Kills 1 | . . 1 Critical Parts Destroyed . | . . . Critical Strikes 2 | . 1 1 Meltdown 1 | . . 1 Blast 1 | . 1 . Melee Attacks . | . . . Impact . | . . . Slashing . | . . . Piercing . | . . . Sneak Attacks . | . . . Combat Hostiles . | . . . Follow-up Attacks . | . . . Damage Inflicted 2776 | 66 1098 1612 Guns 856 | 66 363 427 Cannons 1522 | . 599 923 Explosions 396 | . 134 262 Melee . | . . . Ramming 2 | . 2 . Kinetic 395 | . 231 164 Thermal 1815 | 13 616 1186 Explosive 262 | . . 262 Electromagnetic 302 | 53 249 . Impact . | . . . Slashing . | . . . Piercing . | . . . Highest Corruption . | . . . Average Corruption . | . . . Corruption Purged . | . . . Corruption Blocked . | . . . Overload Shots . | . . . Overflow Damage 21 | . 4 17 Projectiles 4 | . 4 . Explosions 17 | . . 17 Melee . | . . . Knockbacks 5 | . 5 . Impact . | . . . Kinetic 5 | . 5 . Secondary . | . . . Self-Inflicted Damage . | . . . Shots . | . . . Rammed 1 | . 1 . Targets Rammed 1 | . 1 . Kicked . | . . . Crushed . | . . . Highest Temperature 290 | 180 290 168 Average Temperature 82 | 92 95 52 Received Heat Transfer 264 | . 84 180 Effects 1 | . 1 . Interference 1 | . 1 . Siege Activations . | . . . Martial Activations . | . . . Shielding Activations . | . . . Robots Disrupted . | . . . Combat Hostiles . | . . . Robots Corrupted . | . . . Combat Hostiles . | . . . Parts Fried . | . . . Impact Corruptions . | . . . Robots Melted 1 | . . 1 Combat Hostiles 1 | . . 1 Parts Melted 2 | . . 2 Heat Transferred 2732 | 37 1149 1546 Parts Sabotaged . | . . . Parts Stolen . | . . . Parts Stripped . | . . . Power Chain Reactions 3 | . 3 . Alert | -11 -10 -10 ------- Run | Yrd Mat Sub Maximum Alert Level . | . . . Low Security (%) 100 | 100 100 . Level 1 . | . . . Level 2 . | . . . Level 3 . | . . . Level 4 . | . . . Level 5 . | . . . High Security . | . . . Max Security . | . . . Peak Influence 188 | 10 188 . Initial . | . . . Average 67 | 1 68 . Influence Increases 604 | 10 449 145 Destroy 0b10 Robot/C 300 | . 200 100 Destroy 0b10 Robot/NC 45 | 10 35 . Destroy Leader 36 | . 36 . Successful Hack 3 | . 3 . Select Force Hacks 60 | . 60 . Disable Machine 45 | . 45 . Destroy Structure 10 | . 10 . Partial Spotted 15 | . 15 . Lose Combat Pursuer 90 | . 45 45 Influence Decreases 586 | 10 423 153 Entered New Map 14 | . . 14 Time Decay 552 | 10 423 119 Lost Part 20 | . . 20 Squads Dispatched 3 | . 3 . Investigation 2 | . 2 . Extermination . | . . . Reinforcement 1 | . 1 . Assault . | . . . Garrison . | . . . Intercept . | . . . Searches Triggered . | . . . Construction Impeded . | . . . Haulers Reinforced . | . . . Active Scanning Responses . | . . . Cargo Convoy Interrupts . | . . . Stealth | -11 -10 -10 --------- Run | Yrd Mat Sub Distress Signals . | . . . Communications Jammed . | . . . Distress Signals . | . . . Times Spotted 37 | . 18 19 Peak Tracking Total 4 | . 3 4 Tactical Retreats 3 | . 1 2 Traps | -11 -10 -10 ------- Run | Yrd Mat Sub Traps Triggered 3 | . 3 . Indirectly . | . . . Trap Hack Attempts . | . . . Triggered . | . . . Disarmed . | . . . Reprogrammed . | . . . Reused . | . . . Traps Extracted . | . . . Installed . | . . . Triggered . | . . . Machines | -11 -10 -10 ---------- Run | Yrd Mat Sub Machines Disabled 3 | . 3 . Max in Single Turn 1 | . 1 . Machines Repaired . | . . . Machines Dismantled . | . . . Machines Sabotaged . | . . . Overloaded Fab Kills . | . . . Hacking | -11 -10 -10 --------- Run | Yrd Mat Sub Machines Accessed 9 | . 8 1 Terminals 6 | . 6 . Fabricators . | . . . Repair Stations . | . . . Recycling Units 2 | . 2 . Scanalyzers . | . . . Garrison Access . | . . . Total Hacks 21 | . 16 5 Successful 17 | . 12 5 Failed 4 | . 4 . Catastrophic 1 | . 1 . Database Lockouts . | . . . Manual 14 | . 14 . Terminals 14 | . 14 . Fabricators . | . . . Repair Stations . | . . . Recycling Units 2 | . 2 . Scanalyzers . | . . . Garrison Access . | . . . Terminal Hacks 8 | . 3 5 Record 5 | . . 5 Robot Analysis 2 | . 2 . Locate Traps 1 | . 1 . Fabricator Hacks . | . . . Repair Station Hacks . | . . . Recycling Unit Hacks . | . . . Scanalyzer . | . . . Garrison Access Hacks . | . . . Unauthorized Hacks 9 | . 9 . Terminals 7 | . 7 . Botnet 2 | . 2 . Skim 5 | . 5 . Fabricators . | . . . Repair Stations . | . . . Recycling Units 2 | . 2 . Tunnel 2 | . 2 . Scanalyzers . | . . . Garrison Access . | . . . Data Cores Recovered . | . . . Used . | . . . Hacking Detections 6 | . 6 . Full Trace Events . | . . . Feedback Events . | . . . Feedback Blocked . | . . . Robot Schematics Acquired . | . . . Robots Built . | . . . Authchips . | . . . Time . | . . . Total Robot Build Rating . | . . . Part Schematics Acquired . | . . . Parts Built . | . . . Authchips . | . . . Time . | . . . Total Part Build Rating . | . . . Part Studies Acquired . | . . . Parts Repaired . | . . . Time . | . . . Parts Recycled . | . . . Recycled Matter . | . . . Retrieved Matter . | . . . Retrieved Components . | . . . Parts Scanalyzed . | . . . Part Schematics Acquired . | . . . Parts Damaged . | . . . Bothacking | -11 -10 -10 ------------ Run | Yrd Mat Sub Used RIF Installer . | . . . Robots Hacked . | . . . Non-combat . | . . . Combat . | . . . Robot Hacks Applied . | . . . Relay Couplers Released . | . . . Fabnet Peak Effective % . | . . . Robots Rewired . | . . . Allies Hacked . | . . . Hacks Repelled . | . . . Allies | -11 -10 -10 -------- Run | Yrd Mat Sub Total Allies . | . . . Largest Group . | . . . Highest-Rated Group . | . . . Highest-Rated Ally . | . . . Total Orders . | . . . Ally Attacks . | . . . Total Damage . | . . . Kills . | . . . Allies Corrupted . | . . . Allies Melted . | . . . Intel | -11 -10 -10 ------- Run | Yrd Mat Sub Active Infowar (turns) 88 | 17 71 . Terrain 88 | 17 71 . Robot Analysis Total 2 | . 2 . Derelict Logs Recovered 2 | . . 2 Drone Launches . | . . . Drone Recoveries . | . . . Exploration | -11 -10 -10 ------------- Run | Yrd Mat Sub Turns Passed 5206 | 48 1997 3161 Spaces Moved 2527 | 21 892 1614 Core 4 | . . 4 Treads 1591 | 4 892 695 Legs 17 | 17 . . Wheels 915 | . . 915 Hover . | . . . Flight . | . . . Fastest Speed 110 | 120 160 110 Average Speed 144 | 127 160 135 Slowest Speed 450 | 160 160 450 Overloaded Moves . | . . . Propulsion Burnouts . | . . . Robots Hopped . | . . . Potential Cave-ins . | . . . Cave-ins Triggered . | . . . Exploration Rate (%) 64 | 4 97 91 Regions Visited 2 Branch Regions 1 Pre-discovered Areas 4 | . 3 1 Known Exits Taken . | . . . Unknown Exits Taken 2 | 1 1 . Scrap Searched 14 | . . 14 Spaces Dug 1 | . . 1 Terrain Destroyed 46 | . 9 37 Melee . | . . . Projectile 9 | . 2 7 AOE 37 | . 7 30 Terrain Rammed . | . . . Walls Destroyed . | . . . Machines Disabled . | . . . Actions | -11 -10 -10 --------- Run | Yrd Mat Sub Total 3873 | 31 1371 2471 Wait 1151 | . 400 751 Move 2525 | 20 891 1614 Hop . | . . . Pick Up 15 | . 10 5 Fast Attach 16 | 1 6 9 Attach 6 | 2 1 3 Detach 3 | . . 3 Swap 8 | . 4 4 Drop 26 | 2 11 13 Fire 121 | 6 47 68 Melee . | . . . Ram . | . . . Kick . | . . . Crush 1 | . 1 . Escape Stasis . | . . . Rewire 1 | . . 1 Trap . | . . . Miscellaneous . | . . . Route ------- -11/Scrapyard -10/Materials (discovered 6 exits: [*Mat x3] / *Min x2 / *Sub) -10/Subcaves (discovered 3 exits: [*Mat x2] / *Rec) History --------- Turn | Location | Event 20 | -11/Scrapyard | Discovered new exit (range 3) 49 | -11/Scrapyard | Entered Materials 304 | -10/Materials | Discovered new exit (range 9) 312 | -10/Materials | Build established: Mutant 465 | -10/Materials | Discovered new exit (range 11) 586 | -10/Materials | Discovered new exit (range 13) 749 | -10/Materials | Derelicts attacked the area 963 | -10/Materials | Discovered new exit (range 9) 1302 | -10/Materials | Discovered new exit (range 6) 1730 | -10/Materials | Learned location of 1 exit from Storage 1786 | -10/Materials | Discovered new exit (range 6) 1793 | -10/Materials | Learned location of 1 exit from Storage 1848 | -10/Materials | Learned location of 1 exit from Recycling 1891 | -10/Materials | Identified exit to Mines 1965 | -10/Materials | Learned location of Subcaves (-10) 2046 | -10/Materials | Entered Subcaves 2047 | -10/Subcaves | Approached by a straggling Scientist 2148 | -10/Subcaves | Ambushed by angry Subdweller bent on revenge 2173 | -10/Subcaves | Core integrity fell below 50% 2696 | -10/Subcaves | Visited Clippyterm 2701 | -10/Subcaves | Learned Research machine intel 2701 | -10/Subcaves | Learned Factory garrison access intel 2717 | -10/Subcaves | Identified exit to Recycling 2739 | -10/Subcaves | Curiously followed by a Cobbler waking with a query about "LVR3C" 3496 | -10/Subcaves | Discovered new exit (range 11) 3690 | -10/Subcaves | Shifting Twisted Machinery released Flamer 3691 | -10/Subcaves | Shifting Twisted Machinery released Sub. Optics 3879 | -10/Subcaves | A swath of the cavern ceiling suddenly collapsed 4090 | -10/Subcaves | Shifting Twisted Machinery released Mak. Shrapnel Gun 4096 | -10/Subcaves | Shifting Twisted Machinery released Battle Rifle 4168 | -10/Subcaves | Core integrity fell below 20% 4205 | -10/Subcaves | Shifting Twisted Machinery released Sub. Beam Cannon 4208 | -10/Subcaves | Shifting Twisted Machinery released Sub. Beam Cannon 4694 | -10/Subcaves | Learned location of Storage (-9) 4964 | -10/Subcaves | Discovered new exit (range 12) 5031 | -10/Subcaves | Visited 4L-MR0's lab 5207 | -10/Subcaves | Destroyed by Autobeam Turret with Autobeam Last Messages --------------- 04994_ Searching scrap... 04994_ Found Piercing Trap. 04994_ Found 34 Matter. 04996_ Searching scrap... 04996_ Found Mak. Hammer. 04996_ Found Mak. Kinetic Plating. 04996_ Found 51 Matter. 05008_ Searching scrap... 05008_ Found Battle Rifle. 05008_ Found Scrap Shield. 05008_ Found 62 Matter. 05033_ 4L-MR0: "What, already? Ugh, fine! Just take it and go! I only just finished this one... Can't you folks let me experiment with them a little longer before you take them away? 05043_ 9B-PJP(O) collects matter. 05080_ 4L-MR0 cries out in pain. 05080_ 4L-MR0 destroyed. 05122_ 9B-PJP(O) puts together Battle Cannon. Map ----- +----------------------------------------------------+ | ????????###??????????????##### #?# ##?## #? | | ?????????????????????????????### #### #??""#? | | ???????????????????????????????## #?# #?"" ? | | ???????????????????????????????# #?# "#? | | ???????????????????????????????## #?### # ##? | | ????????????????????????????????## ##??## ####?? | | ?????????????????????????????????# ##??# #????? | | ????????????????????????????????## " #??# #????? | | ?????????????????????????????####]"" #??#" #????? | | ?????????????????????????????# " "###### #????? | | ?????????????????????????????# " #??##????? | | ?????????????############???## #???###??? | | ???????????### ## ##### #####"#??? | | ???????????# ## ## ##?? | | ???????????## | ##### ### | | #??????????## #####???## ] | | #????????## ## #???????## | | #????#### ### #????#### | | ##?## ## ##?##### ###????# ## | | ## ### #####?#####?????## #####? | | ##?# ### ##?########## ##??### | | # ##??# ##" """# ##??## # | | ## #??## # "# ##### #???# | | ?## ##??# ### "# #???## #???# | | #?### ##??## t""###????## ##### | | ##??# #### #### @ >#??????### # | | ##### #???## t""##?????## | | ## # # # "#??????# | | ## # ### "#??????## # | | #### ## #??" """#??????# ### # | | ##?## ## #??#######??????## ## | | ##?## ## #??????????????## #### # | | ##?# # # # ???????????# ##??# | | ### # ###??????????# #???# # | | ## ######## ##?????????????###???## # | | ## ## ##??????## ##?????????????????????# | | ## #????????## #????????????????????### # | | ###??????????##????????????????????# # | | ##??????????????????????????????????# #### | | #### ####???????????????????????????????????###??? | | ???###???????????????????????????????????????????? | | ?????????????????????????????????????????????????? | | ?????????????????????????????????????????????????? | | ?????????????????????????????????????????????????? | | ?????????????????????????????????????????????????? | | ?????????????????????????????????????????????????? | | ?????????????????????????????????????????????????? | | ?????????????????????????????????????????????????? | | ?????????????????????????????????????????????????? | | ?????????????????????????????????????????????????? | +----------------------------------------------------+ Best States ------------- Heat Dissipation 25 Energy Generation 15 Energy Capacity 200 Matter Stores 300 Matter Capacity 300 Sight Range 16 Terrain Scan Range 16 Terrain Scan Density 10 Evasion (%) 55 Targeting Accuracy 6 Recoil Reduction 2 Item Schematics ----------------- None Robot Schematics ------------------ None Fabricated ------------ Nothing Repaired ---------- Nothing Studied --------- None Alien Tech Used ----------------- None Achievements -------------- None Challenges ------------ None Game ------ Seed ParticleZipChip Manual? 0 Play Time 00:19:34 Cumulative 364.8 hours Start 2026.03.26 @ 21:52:39 End 2026.03.26 @ 22:11:07 Sessions 1 Manual Loads 0 Difficulty Rogue Special Mode None Game No. 295 Rogue 259 Adventurer 36 Explorer 0 Win Type - Total 5 Types 2/0/0/1/0/0/0/2/0/0 Lore% 67 Gallery% 64 Achievement% 51 Wizard Run 0 Options --------- Layout 1 ASCII 0 Keyboard 0 Movement Numpad Keybinds 0 Fullscreen 1 Font 48/Smallcaps Map View 50x35 Zoom Use 0% Tactical HUD 1 Map Filters NONE Filters NONE Steam 1 RUN: 8a1c27aa-614e-4926-8d67-e026a1171057